Cogmind - Beta 15 @@@ ROGUE MODE // 2025.10.20 @ 13:58:04 Player: Big Jerry Result: Destroyed by D-53 Grenadier with Mini Grenade Launcher Performance ------------- Evolutions (0) 0 Regions Visited (2) 400 Robots Destroyed (32) 160 Value Destroyed (688) 688 Prototype IDs (2) 40 Alien Tech Used (0) 0 Bonus (0) 0 TOTAL SCORE: 1288 Bonus ------- None Cogmind --------- Core Integrity 0/250 Matter 276/300 Energy 220/265 System Corruption 0% Temperature Cool (90) Movement Treading (480) Ox4 Location -10/Mines Parts ------- > --- POWER (1) -------- Improved Ion Engine > --- PROPULSION (2) --- Light Treads > --- UTILITY (2) ------ Heat Sink Huge Storage Unit > --- WEAPON (2) ------- Particle Cannon > --- INVENTORY (25) --- Improved Ion Engine Light Treads Aluminum Leg Aluminum Leg Flexi-carbon Leg Large Storage Unit Sensor Array Terrain Scan Processor ECM Suite Hacking Suite EM Pulse Gun Medium Laser Particle Cannon Particle Cannon Particle Cannon Datajack Peak State ------------ > --- POWER ------------ Improved Ion Engine > --- PROPULSION ------- Light Treads Light Treads > --- UTILITY ---------- Heat Sink Huge Storage Unit > --- WEAPON ----------- Medium Laser Particle Cannon > --- INVENTORY -------- Improved Ion Engine Light Treads Aluminum Leg Aluminum Leg Large Storage Unit Sensor Array Terrain Scan Processor ECM Suite Hacking Suite EM Pulse Gun Medium Laser Particle Cannon Particle Cannon Particle Cannon Datajack [Rating: 11] Favorites ----------- Power Improved Ion Engine Engine Improved Ion Engine Propulsion Light Treads Treads Light Treads Utility Heat Sink Device Heat Sink Storage Large Storage Unit Weapon Medium Laser Energy Gun Medium Laser Energy Cannon Particle Cannon Launcher Grenade Launcher Special Melee Weapon Datajack Build | -11 -10 -10 ------- Run | Yrd Mat Min Slots Evolved . | . . . Power . | . . . Propulsion . | . . . Utility . | . . . Weapon . | . . . Parts Attached 18 | 6 10 2 Power 3 | 1 1 1 Engine 3 | 1 1 1 Core . | . . . Reactor . | . . . Propulsion 4 | 2 2 . Treads 4 | 2 2 . Leg . | . . . Wheel . | . . . Hover . | . . . Flight . | . . . Utility 4 | 1 3 . Device 1 | . 1 . Storage 3 | 1 2 . Processor . | . . . Hackware . | . . . Protection . | . . . Artifact . | . . . Weapon 7 | 2 4 1 Energy Gun 4 | 2 2 . Energy Cannon 1 | . . 1 Ballistic Gun . | . . . Ballistic Cannon . | . . . Launcher 1 | . 1 . Special Weapon . | . . . Impact Weapon . | . . . Slashing Weapon . | . . . Piercing Weapon . | . . . Special Melee Weapon 1 | . 1 . Unidentified Prototypes . | . . . Parts Lost 6 | . 1 5 Power 1 | . . 1 Propulsion 2 | . 1 1 Utility . | . . . Weapon 3 | . . 3 Highest Loss Streak 3 | . 1 3 To Critical Strikes . | . . . Average Backups 12 | 1 12 16 Power 1 | . 1 1 Propulsion 2 | 1 2 3 Utility 2 | . 2 5 Weapon 5 | . 5 5 Tool/Special . | . . . Unused Backups 13 | . 2 11 Power 3 | . 2 1 Propulsion 2 | . . 2 Utility 4 | . . 4 Weapon 4 | . . 4 Tool/Special . | . . . Average Slot Usage (%) 96 | . 96 100 Engine 14 | . 14 14 Treads 24 | . 24 28 Device 13 | . 13 14 Storage 14 | . 14 14 Energy Gun 26 | . 26 14 Peak Build Rating 11 | 6 10 11 Average Rating 8 | 4 8 10 On Entrance 5 | . 6 10 Naked Turns . | . . . Heaviest Build 94 | 12 92 94 Greatest Support 40 | 40 40 40 Greatest Overweight (x) 2 | . 2 2 Average Overweight (x) . | . . 2 Largest Inventory Capacity 25 | 8 25 25 Average Capacity 16 | 7 16 25 Most Carried 18 | 4 18 18 Average Carried 12 | 1 12 16 Final Capacity 25 | 8 25 25 Final Carried 18 | 4 18 16 Class Distribution -------------------- 100% | Mutant Dominant Class ---------------- Mutant | -10/Materials Mutant | -10/Mines Resources | -11 -10 -10 ----------- Run | Yrd Mat Min Matter Collected 511 | 138 322 51 Remotely . | . . . Salvage Created 946 | . 864 82 Parts 52 | . 50 2 Haulers Intercepted 2 | . 2 . Recyclers Shooed . | . . . Parts Field Recycled . | . . . Retrieved Matter . | . . . Parts Self-Destructed . | . . . Prevented . | . . . Kills | -11 -10 -10 ------- Run | Yrd Mat Min Combat Hostiles Destroyed 35 | . 18 17 Guns 18 | . 16 2 Cannons 2 | . . 2 AOE 15 | . 2 13 Classes Destroyed 8 | . 7 1 Worker 4 | . 4 . Hauler 2 | . 2 . Recycler 1 | . 1 . Operator 3 | . 3 . Watcher 3 | . 3 . Swarmer 6 | . 6 . Grunt 13 | . 12 1 Assembled 16 | . . 16 Best Kill Streak 17 | . 6 17 Combat Bots Only 17 | . 3 17 Max Kills in Single Turn 4 | . 2 4 Gunslinging . | . . . Exploded 4 | . 2 4 Melee . | . . . Uniques/NPCs Destroyed . | . . . Combat | -11 -10 -10 -------- Run | Yrd Mat Min Hostile Shots Fired 123 | . 82 41 Missed 29 | . 19 10 Hits 94 | . 63 31 Melee 2 | . . 2 Projectile 92 | . 63 29 AOE 10 | . . 10 Part Disruptions 3 | . . 3 Damage Taken 1342 | . 663 679 Core 251 | . 94 157 Absorbed by Shields . | . . . Regen/Repaired (Parts) 135 | . 135 . Core Remaining (%) 100 | 100 . . Volleys Fired 97 | . 84 13 Largest 2 | . 2 2 Hottest 118 | . 100 118 Shots Fired 188 | . 162 26 Gun 172 | . 158 14 Cannon 6 | . . 6 Launcher 10 | . 4 6 Special . | . . . Kinetic . | . . . Thermal 178 | . 158 20 Explosive 10 | . 4 6 Electromagnetic . | . . . Robot Hit Streak 10 | . 8 10 Robot Miss Streak 5 | . 5 1 Penetration Max . | . . . Secondary Targets 2 | . 2 . Max Gunslinging Chain 1 | . 1 . Shots Hit Robots 119 | . 101 18 Core Hits 96 | . 52 44 Critical Kills . | . . . Critical Parts Destroyed . | . . . Critical Strikes 7 | . 6 1 Burn 7 | . 6 1 Melee Attacks 5 | . 5 . Impact . | . . . Slashing . | . . . Piercing . | . . . Sneak Attacks 5 | . 5 . Combat Hostiles . | . . . Follow-up Attacks . | . . . Damage Inflicted 2729 | . 1466 1263 Guns 1376 | . 1236 140 Cannons 83 | . . 83 Explosions 1270 | . 230 1040 Melee . | . . . Ramming . | . . . Kinetic . | . . . Thermal 1508 | . 1236 272 Explosive 1221 | . 230 991 Electromagnetic . | . . . Impact . | . . . Slashing . | . . . Piercing . | . . . Highest Corruption . | . . . Average Corruption . | . . . Corruption Purged . | . . . Corruption Blocked . | . . . Overload Shots . | . . . Overflow Damage 12 | . 10 2 Projectiles . | . . . Explosions 12 | . 10 2 Melee . | . . . Knockbacks . | . . . Impact . | . . . Kinetic . | . . . Secondary . | . . . Self-Inflicted Damage . | . . . Shots . | . . . Rammed . | . . . Targets Rammed . | . . . Kicked . | . . . Crushed . | . . . Highest Temperature 349 | . 349 90 Average Temperature 66 | . 71 28 Received Heat Transfer 420 | . 282 138 Effects 2 | . 2 . Energy Bleed 1 | . 1 . Short Circuit 1 | . 1 . Siege Activations . | . . . Martial Activations . | . . . Shielding Activations . | . . . Robots Disrupted . | . . . Combat Hostiles . | . . . Robots Corrupted . | . . . Combat Hostiles . | . . . Parts Fried . | . . . Impact Corruptions . | . . . Robots Melted 1 | . 1 . Combat Hostiles . | . . . Parts Melted 11 | . 11 . Heat Transferred 4749 | . 4070 679 Parts Sabotaged . | . . . Parts Stolen . | . . . Parts Stripped . | . . . Power Chain Reactions . | . . . Alert | -11 -10 -10 ------- Run | Yrd Mat Min Maximum Alert Level 1 | . 1 . Low Security (%) 99 | 100 99 100 Level 1 . | . . . Level 2 . | . . . Level 3 . | . . . Level 4 . | . . . Level 5 . | . . . High Security . | . . . Max Security . | . . . Peak Influence 198 | . 198 135 Initial 5 | . . 5 Average 60 | . 61 76 Influence Increases 706 | . 576 130 Destroy 0b10 Robot/C 380 | . 360 20 Destroy 0b10 Robot/NC 65 | . 65 . Destroy Leader 110 | . 110 . Successful Hack 19 | . 19 . Disable Machine 75 | . . 75 Destroy Structure 57 | . 22 35 Influence Decreases 651 | . 562 89 Entered New Map 9 | . . 9 Time Decay 582 | . 552 30 Lost Part 60 | . 10 50 Squads Dispatched 6 | . 6 . Investigation 3 | . 3 . Extermination . | . . . Reinforcement 3 | . 3 . Assault . | . . . Garrison . | . . . Intercept . | . . . Searches Triggered . | . . . Construction Impeded . | . . . Haulers Reinforced . | . . . Active Scanning Responses . | . . . Cargo Convoy Interrupts . | . . . Stealth | -11 -10 -10 --------- Run | Yrd Mat Min Distress Signals 2 | . 2 . Communications Jammed . | . . . Distress Signals . | . . . Times Spotted 49 | . 27 22 Peak Tracking Total 18 | . 5 18 Tactical Retreats . | . . . Traps | -11 -10 -10 ------- Run | Yrd Mat Min Traps Triggered 3 | . 3 . Indirectly . | . . . Trap Hack Attempts 15 | . 15 . Triggered . | . . . Disarmed 2 | . 2 . Reprogrammed . | . . . Reused . | . . . Traps Extracted . | . . . Installed . | . . . Triggered . | . . . Machines | -11 -10 -10 ---------- Run | Yrd Mat Min Machines Disabled 6 | . 1 5 Max in Single Turn 5 | . 1 5 Machines Repaired . | . . . Machines Dismantled . | . . . Machines Sabotaged . | . . . Overloaded Fab Kills . | . . . Hacking | -11 -10 -10 --------- Run | Yrd Mat Min Machines Accessed 6 | . 6 . Terminals 4 | . 4 . Fabricators . | . . . Repair Stations 1 | . 1 . Recycling Units 1 | . 1 . Scanalyzers . | . . . Garrison Access . | . . . Total Hacks 13 | . 13 . Successful 12 | . 12 . Failed 1 | . 1 . Catastrophic . | . . . Database Lockouts . | . . . Manual . | . . . Terminals 7 | . 7 . Fabricators . | . . . Repair Stations 5 | . 5 . Recycling Units 1 | . 1 . Scanalyzers . | . . . Garrison Access . | . . . Terminal Hacks 6 | . 6 . Record 1 | . 1 . Prototype ID Bank 1 | . 1 . Locate Traps 3 | . 3 . Hauler Manifests 1 | . 1 . Fabricator Hacks . | . . . Repair Station Hacks 5 | . 5 . Scan Component 3 | . 3 . Repair 2 | . 2 . Recycling Unit Hacks 1 | . 1 . Report Inventory 1 | . 1 . Scanalyzer . | . . . Garrison Access Hacks . | . . . Unauthorized Hacks . | . . . Terminals . | . . . Fabricators . | . . . Repair Stations . | . . . Recycling Units . | . . . Scanalyzers . | . . . Garrison Access . | . . . Data Cores Recovered . | . . . Used . | . . . Hacking Detections 3 | . 3 . Full Trace Events 1 | . 1 . Feedback Events . | . . . Feedback Blocked . | . . . Robot Schematics Acquired . | . . . Robots Built . | . . . Authchips . | . . . Time . | . . . Total Robot Build Rating . | . . . Part Schematics Acquired . | . . . Parts Built . | . . . Authchips . | . . . Time . | . . . Total Part Build Rating . | . . . Parts Repaired 2 | . 2 . Time 62 | . 62 . Parts Recycled . | . . . Recycled Matter . | . . . Retrieved Matter . | . . . Retrieved Components . | . . . Parts Scanalyzed . | . . . Part Schematics Acquired . | . . . Parts Damaged . | . . . Bothacking | -11 -10 -10 ------------ Run | Yrd Mat Min Used RIF Installer . | . . . Robots Hacked 2 | . 2 . Non-combat 2 | . 2 . Combat . | . . . Robot Hacks Applied 4 | . 4 . no_distress 3 | . 3 . check_alert 1 | . 1 . Relay Couplers Released . | . . . Fabnet Peak Effective % . | . . . Robots Rewired . | . . . Allies Hacked . | . . . Hacks Repelled . | . . . Allies | -11 -10 -10 -------- Run | Yrd Mat Min Total Allies . | . . . Largest Group . | . . . Highest-Rated Group . | . . . Highest-Rated Ally . | . . . Total Orders . | . . . Ally Attacks . | . . . Total Damage . | . . . Kills . | . . . Allies Corrupted . | . . . Allies Melted . | . . . Intel | -11 -10 -10 ------- Run | Yrd Mat Min Active Infowar (turns) . | . . . Robot Analysis Total . | . . . Derelict Logs Recovered . | . . . Drone Launches . | . . . Drone Recoveries . | . . . Exploration | -11 -10 -10 ------------- Run | Yrd Mat Min Turns Passed 2414 | 68 2285 61 Spaces Moved 921 | 39 877 5 Core 6 | 6 . . Treads 915 | 33 877 5 Legs . | . . . Wheels . | . . . Hover . | . . . Flight . | . . . Fastest Speed 50 | 50 160 320 Average Speed 213 | 143 216 320 Slowest Speed 320 | 160 320 320 Overloaded Moves . | . . . Propulsion Burnouts . | . . . Robots Hopped . | . . . Potential Cave-ins . | . . . Cave-ins Triggered . | . . . Exploration Rate (%) 36 | 4 94 12 Regions Visited 2 Branch Regions 1 Pre-discovered Areas . | . . . Known Exits Taken . | . . . Unknown Exits Taken 2 | 1 1 . Scrap Searched . | . . . Spaces Dug . | . . . Terrain Destroyed 69 | . 27 42 Melee . | . . . Projectile 1 | . . 1 AOE 68 | . 27 41 Terrain Rammed . | . . . Walls Destroyed . | . . . Machines Disabled . | . . . Actions | -11 -10 -10 --------- Run | Yrd Mat Min Total 1172 | 48 1101 23 Wait 82 | . 82 . Move 919 | 38 876 5 Hop . | . . . Pick Up 21 | 4 16 1 Fast Attach 10 | 6 4 . Attach 4 | . 1 3 Detach . | . . . Swap 12 | . 11 1 Drop 7 | . 7 . Fire 97 | . 84 13 Melee 5 | . 5 . Ram . | . . . Kick . | . . . Crush . | . . . Escape Stasis . | . . . Rewire . | . . . Trap 15 | . 15 . Miscellaneous . | . . . Route ------- -11/Scrapyard -10/Materials (discovered 4 exits: [*Mat x2] / [*Min] / [*Sub]) -10/Mines History --------- Turn | Location | Event 6 | -11/Scrapyard | Discovered new exit (range 14) 69 | -11/Scrapyard | Entered Materials 308 | -10/Materials | Build established: Mutant 320 | -10/Materials | Discovered new exit (range 14) 914 | -10/Materials | Discovered new exit (range 5) 924 | -10/Materials | Discovered new exit (range 5) 1341 | -10/Materials | Repaired Broken Lgt. Treads 1368 | -10/Materials | Repaired Med. Laser 1590 | -10/Materials | Discovered new exit (range 5) 2354 | -10/Materials | Entered Mines 2355 | -10/Mines | Assembled infested the area 2360 | -10/Mines | Assisted by a Guerilla fighting off Assembled 2369 | -10/Mines | Core integrity fell below 50% 2407 | -10/Mines | Destroyed 17 combat bots 2407 | -10/Mines | Lost 3 parts (1p2w) 2410 | -10/Mines | Core integrity fell below 20% 2415 | -10/Mines | Destroyed by D-53 Grenadier with Mini Grenade Launcher Last Messages --------------- Plasma Injector explodes. as-88992 destroyed. Plasma Injector explodes. Grenade Launcher destroyed. Med. Laser destroyed. Imp. Ion Engine destroyed. as-02711 destroyed. as-47105 destroyed. [Achievement: Exterminator] as-17406 destroyed. Acquired 3 matter. Acquired 48 matter. The unstable cave ceiling collapses. Acquired Flexi-carbon Leg. C-30 ARC bursts open, deploying its payload. D-53 Grenadier unfolds itself. D-53 Grenadier suffers critical hit (Burn). The unstable cave ceiling collapses. Med. Laser destroyed. Lgt. Treads destroyed. Map ----- +----------------------------------------------------+ | ???????????????????????????????????? | | ???????????????????????????????????? | | ???????????????????????????????????? | | ???????????????????????????????????? | | ???????????????????????????????????? | | ???????????????????????????????????? | | ???????????????????????????????????? | | ???????????????????????????????????? | | ???????????????????????????????????? | | ???????????????????????????????????? | | ???????????????????????????????????? | | ???????????????????????????????????? | | ?????????????????????#####?###?##??? | | ??????????????????####;; ## ;##;##?? | | ??????????????????# ;#?? | | ?????????????????## ;#?? | | ?????????????????#; ;#?? | | ?????????????????# ;#?? | | ?????????????????# ;##? | | ?????????????????#; #? | | ?????????????????#; #?? | | ??????????????????# ;#?? | | ??????????????????# = * #?? | | ??????????????????# #?? | | ??????????????????# #?? | | ??????????????????# @ #? | | ??????????????????#### #?? | | ????????????????????# d #?? | | ??????????????????? # d ##?? | | ????????????????? # %< ####??? | | ??????????????? ? ## #????? | | ????????????? ? ? #???? | | ????????????# ??u ? ?? ???? | | ????????????????## ? ?? ??? | | ?????????????????#? ??? ;?? | | ??????????????????? ??? ##?? | | ??????????????????##???? #######??? | | ???????????????????????? ?????????? | | ???????????????????????? ?????????? | | ???????????????????????? ?????????? | | ???????????????????????? ?????????? | | ???????????????????????????????????? | | ???????????????????????????????????? | | ???????????????????????????????????? | | ???????????????????????????????????? | | ???????????????????????????????????? | | ???????????????????????????????????? | | ???????????????????????????????????? | | ???????????????????????????????????? | | ???????????????????????????????????? | +----------------------------------------------------+ Best States ------------- Heat Dissipation 35 Energy Generation 12 Energy Capacity 265 Matter Stores 300 Matter Capacity 300 Sight Range 16 Terrain Scan Density 10 Evasion (%) 40 Recoil Reduction 2 Item Schematics ----------------- None Robot Schematics ------------------ None Fabricated ------------ Nothing Repaired ---------- Lgt. Treads | 42% | -10/Materials | Broken Med. Laser | 21% | -10/Materials Alien Tech Used ----------------- None Achievements -------------- Exterminator Challenges ------------ None Game ------ Seed ActuatorDrainedRay Manual? 0 Play Time 00:21:01 Cumulative 30.0 hours Start 2025.10.20 @ 13:36:25 End 2025.10.20 @ 13:58:04 Sessions 1 Manual Loads 0 Difficulty Rogue Special Mode None Game No. 39 Rogue 39 Adventurer 0 Explorer 0 Win Type - Total 0 Types 0/0/0/0/0/0/0/0/0/0 Lore% 24 Gallery% 24 Achievement% 23 Wizard Run 0 Options --------- Layout 1 ASCII 0 Keyboard 0 Movement Numpad Keybinds 0 Fullscreen 1 Font 24/Swanston Map View 50x35 Zoom Use 0% Tactical HUD 0 Map Filters NONE Filters NONE Steam 1 RUN: 8cdf1bf0-e333-4704-97be-163934ed7219